[Event "*** Titled Tuesday Blitz"]
[Site "Chess.com"]
[Date "2018.05.01"]
[Round "3"]
[White "eljanov"]
[Black "PchelkinVK"]
[Result "1/2-1/2"]
[WhiteElo "2649"]
[BlackElo "2432"]
[TimeControl "180+2"]
[EndTime "13:39:23 PDT"]
[Termination "Game drawn by agreement"]

1. c4 {[%clk 0:02:34]} 1... e5 {[%clk 0:02:59.4]} 2. Nc3 {[%clk 0:02:32.7]} 2...
Nc6 {[%clk 0:02:58.9]} 3. g3 {[%clk 0:02:33.2]} 3... Bc5 {[%clk 0:02:59]} 4. Bg2
{[%clk 0:02:31.7]} 4... d6 {[%clk 0:03:00]} 5. Nf3 {[%clk 0:02:31.3]} 5... Bf5
{[%clk 0:02:55.2]} 6. d3 {[%clk 0:02:19.3]} 6... Qd7 {[%clk 0:02:52.6]} 7. Nd5
{[%clk 0:02:08.7]} 7... Nge7 {[%clk 0:02:50.1]} 8. e4 {[%clk 0:02:09.4]} 8...
Bg4 {[%clk 0:02:39]} 9. h3 {[%clk 0:02:10.3]} 9... Bxf3 {[%clk 0:02:39.8]} 10.
Bxf3 {[%clk 0:02:11.5]} 10... Nxd5 {[%clk 0:02:35.2]} 11. cxd5 {[%clk
0:02:12.2]} 11... Nd4 {[%clk 0:02:36.4]} 12. Bg4 {[%clk 0:02:07.8]} 12... f5
{[%clk 0:02:24.3]} 13. exf5 {[%clk 0:02:02]} 13... Nxf5 {[%clk 0:02:25.2]} 14.
Be3 {[%clk 0:01:51.6]} 14... Bb4+ {[%clk 0:02:02.7]} 15. Kf1 {[%clk 0:01:35.7]}
15... Nxe3+ {[%clk 0:01:49.9]} 16. fxe3 {[%clk 0:01:36.6]} 16... O-O+ {[%clk
0:01:51.4]} 17. Kg2 {[%clk 0:01:37.7]} 17... Qb5 {[%clk 0:01:51.2]} 18. Be6+
{[%clk 0:01:36.4]} 18... Kh8 {[%clk 0:01:51.9]} 19. Qe2 {[%clk 0:01:37.5]} 19...
Bc5 {[%clk 0:01:43.6]} 20. Rhf1 {[%clk 0:01:36.2]} 20... e4 {[%clk 0:01:28.7]}
21. Rxf8+ {[%clk 0:01:33.3]} 21... Rxf8 {[%clk 0:01:28.8]} 22. Rf1 {[%clk
0:01:32.9]} 22... Rxf1 {[%clk 0:01:28.4]} 23. Qxf1 {[%clk 0:01:33.7]} 23...
Qxb2+ {[%clk 0:01:29.4]} 24. Kh1 {[%clk 0:01:34.9]} 24... Qf6 {[%clk 0:01:28.2]}
25. Qxf6 {[%clk 0:01:34]} 25... gxf6 {[%clk 0:01:30.1]} 26. d4 {[%clk
0:01:32.8]} 26... Bb4 {[%clk 0:01:28.1]} 27. Kg2 {[%clk 0:01:34]} 27... c5
{[%clk 0:00:45.9]} 28. dxc6 {[%clk 0:01:30.7]} 28... bxc6 {[%clk 0:00:46.8]} 29.
Bf5 {[%clk 0:01:24.7]} 29... d5 {[%clk 0:00:46.4]} 30. Kf2 {[%clk 0:01:19.8]}
30... Kg7 {[%clk 0:00:41.5]} 31. Bd7 {[%clk 0:01:16.5]} 31... c5 {[%clk
0:00:42.1]} 32. Bc6 {[%clk 0:01:07.7]} 32... cxd4 {[%clk 0:00:36.5]} 33. exd4
{[%clk 0:01:08.8]} 33... f5 {[%clk 0:00:29.6]} 34. Bxd5 {[%clk 0:01:09.2]} 34...
Kf6 {[%clk 0:00:31]} 35. g4 {[%clk 0:01:07]} 35... fxg4 {[%clk 0:00:28.7]} 36.
hxg4 {[%clk 0:01:07.3]} 36... Kg5 {[%clk 0:00:21.8]} 37. Bxe4 {[%clk 0:01:07.6]}
37... Kxg4 {[%clk 0:00:23]} 38. Bxh7 {[%clk 0:01:07.8]} 38... Kf4 {[%clk
0:00:24.5]} 39. Ke2 {[%clk 0:01:08.9]} 39... Kg5 {[%clk 0:00:12]} 40. Kd3 {[%clk
0:01:10]} 40... Kf6 {[%clk 0:00:13.1]} 41. Kc4 {[%clk 0:01:11.1]} 41... Ba5
{[%clk 0:00:13.8]} 42. Kb5 {[%clk 0:01:11.8]} 42... Bb6 {[%clk 0:00:14.4]} 43.
d5 {[%clk 0:01:13]} 43... Ke7 {[%clk 0:00:15.8]} 44. Kc6 {[%clk 0:01:14.2]}
44... Kd8 {[%clk 0:00:14.7]} 45. d6 {[%clk 0:01:15.3]} 45... Bd4 {[%clk
0:00:15.7]} 46. Bf5 {[%clk 0:01:16.1]} 46... Be3 {[%clk 0:00:16.9]} 1/2-1/2

[Event "*** Titled Tuesday Blitz"]
[Site "Chess.com"]
[Date "2018.05.01"]
[Round "3"]
[White "LADIESGET2KNOWME"]
[Black "GMSrinath"]
[Result "0-1"]
[WhiteElo "2534"]
[BlackElo "2758"]
[TimeControl "180+2"]
[EndTime "13:39:25 PDT"]
[Termination "GMSrinath won by resignation"]

1. e4 {[%clk 0:03:01.9]} 1... c5 {[%clk 0:02:59.9]} 2. c3 {[%clk 0:03:02.6]}
2... Nf6 {[%clk 0:02:59.8]} 3. e5 {[%clk 0:03:03.9]} 3... Nd5 {[%clk 0:03:01.3]}
4. d4 {[%clk 0:03:05.8]} 4... cxd4 {[%clk 0:03:02]} 5. Nf3 {[%clk 0:03:07.7]}
5... g6 {[%clk 0:03:02.3]} 6. Bc4 {[%clk 0:03:07.2]} 6... Nb6 {[%clk 0:03:02.9]}
7. Bb3 {[%clk 0:03:08.4]} 7... Bg7 {[%clk 0:03:04.1]} 8. Ng5 {[%clk 0:03:08.7]}
8... d5 {[%clk 0:02:32]} 9. exd6 {[%clk 0:03:10.6]} 9... O-O {[%clk 0:02:32.9]}
10. Qf3 {[%clk 0:02:54.6]} 10... e6 {[%clk 0:02:28.5]} 11. Ne4 {[%clk
0:02:36.8]} 11... f5 {[%clk 0:02:19]} 12. Ng5 {[%clk 0:02:22.4]} 12... Qxd6
{[%clk 0:02:19.3]} 13. O-O {[%clk 0:02:13.2]} 13... h6 {[%clk 0:02:19.4]} 14.
Nh3 {[%clk 0:02:14.3]} 14... Kh7 {[%clk 0:02:12.3]} 15. cxd4 {[%clk 0:02:05.4]}
15... Nc6 {[%clk 0:02:12.7]} 16. Rd1 {[%clk 0:02:01.4]} 16... Nxd4 {[%clk
0:02:05.2]} 17. Qe3 {[%clk 0:01:57.6]} 17... a5 {[%clk 0:01:48.7]} 18. Nc3
{[%clk 0:01:36.2]} 18... Qc5 {[%clk 0:01:01]} 19. Ne2 {[%clk 0:00:53]} 19...
Nxb3 {[%clk 0:00:40.6]} 20. axb3 {[%clk 0:00:54.9]} 20... Qc7 {[%clk 0:00:29.6]}
21. Nhf4 {[%clk 0:00:50.6]} 21... e5 {[%clk 0:00:28.8]} 22. Nd5 {[%clk
0:00:49.2]} 22... Nxd5 {[%clk 0:00:29.3]} 23. Rxd5 {[%clk 0:00:51.1]} 23... Be6
{[%clk 0:00:30.8]} 24. Rc5 {[%clk 0:00:52]} 24... Qd6 {[%clk 0:00:31.8]} 25. Nc3
{[%clk 0:00:48.5]} 25... f4 {[%clk 0:00:28]} 26. Qf3 {[%clk 0:00:13.4]} 26...
Qxc5 {[%clk 0:00:27.7]} 27. Qxb7 {[%clk 0:00:11.6]} 27... Rad8 {[%clk
0:00:23.1]} 28. h3 {[%clk 0:00:12.4]} 28... Bd5 {[%clk 0:00:17.5]} 29. Qa6
{[%clk 0:00:13.6]} 29... Bxb3 {[%clk 0:00:16.6]} 30. Rxa5 {[%clk 0:00:13.9]}
30... Qc4 {[%clk 0:00:17.5]} 31. Qb7 {[%clk 0:00:12.7]} 31... Rd1+ {[%clk
0:00:14.7]} 32. Nxd1 {[%clk 0:00:13.6]} 32... Qxc1 {[%clk 0:00:16.6]} 33. Ra7
{[%clk 0:00:14.4]} 33... Rf7 {[%clk 0:00:16.9]} 34. Kh2 {[%clk 0:00:16.3]} 34...
Rxb7 {[%clk 0:00:17.6]} 35. Rxb7 {[%clk 0:00:18.2]} 35... Qxd1 {[%clk
0:00:18.8]} 0-1

[Event "*** Titled Tuesday Blitz"]
[Site "Chess.com"]
[Date "2018.05.01"]
[Round "3"]
[White "cukus"]
[Black "FabianoCaruana"]
[Result "0-1"]
[WhiteElo "2404"]
[BlackElo "2798"]
[TimeControl "180+2"]
[EndTime "13:39:26 PDT"]
[Termination "FabianoCaruana won on time"]

1. e4 {[%clk 0:03:01.8]} 1... c5 {[%clk 0:03:00.2]} 2. Nf3 {[%clk 0:03:02.7]}
2... e6 {[%clk 0:03:00.9]} 3. d4 {[%clk 0:03:04]} 3... cxd4 {[%clk 0:03:02.8]}
4. Nxd4 {[%clk 0:03:05.7]} 4... a6 {[%clk 0:03:03.7]} 5. c4 {[%clk 0:03:00.3]}
5... Nf6 {[%clk 0:03:02.1]} 6. Nc3 {[%clk 0:02:59]} 6... Bb4 {[%clk 0:03:02.2]}
7. Qd3 {[%clk 0:02:52.4]} 7... d6 {[%clk 0:02:59.1]} 8. Nc2 {[%clk 0:02:49.8]}
8... Bxc3+ {[%clk 0:02:55.8]} 9. Qxc3 {[%clk 0:02:48.8]} 9... O-O {[%clk
0:02:55.8]} 10. f3 {[%clk 0:02:47]} 10... e5 {[%clk 0:02:55.2]} 11. Bg5 {[%clk
0:02:38.7]} 11... h6 {[%clk 0:02:51.3]} 12. Bh4 {[%clk 0:02:34.9]} 12... Be6
{[%clk 0:02:43.4]} 13. Qd2 {[%clk 0:02:29.8]} 13... Qe7 {[%clk 0:02:29.5]} 14.
Bf2 {[%clk 0:02:08.4]} 14... Nc6 {[%clk 0:02:28.5]} 15. Be2 {[%clk 0:02:06.6]}
15... Nh5 {[%clk 0:02:23.2]} 16. O-O {[%clk 0:02:01.8]} 16... Nf4 {[%clk
0:02:22.7]} 17. Be3 {[%clk 0:01:40.7]} 17... Nxe2+ {[%clk 0:02:19.7]} 18. Qxe2
{[%clk 0:01:41.2]} 18... b5 {[%clk 0:02:17.7]} 19. Na3 {[%clk 0:01:22]} 19... b4
{[%clk 0:02:09.4]} 20. Nc2 {[%clk 0:01:22.6]} 20... a5 {[%clk 0:02:06.6]} 21.
Rfd1 {[%clk 0:01:22]} 21... a4 {[%clk 0:02:02.4]} 22. b3 {[%clk 0:01:16.5]}
22... f5 {[%clk 0:01:53.6]} 23. exf5 {[%clk 0:01:12.5]} 23... Bxf5 {[%clk
0:01:55.5]} 24. Qd2 {[%clk 0:01:06.2]} 24... axb3 {[%clk 0:01:15.4]} 25. axb3
{[%clk 0:01:06.4]} 25... Rxa1 {[%clk 0:01:16.6]} 26. Rxa1 {[%clk 0:01:06.8]}
26... Qf6 {[%clk 0:00:56.3]} 27. Rd1 {[%clk 0:01:04.6]} 27... Qg6 {[%clk
0:00:44.1]} 28. Qd5+ {[%clk 0:00:41.6]} 28... Kh7 {[%clk 0:00:35.4]} 29. Qxc6
{[%clk 0:00:42]} 29... Bxc2 {[%clk 0:00:36.3]} 30. Rxd6 {[%clk 0:00:41]} 30...
Qh5 {[%clk 0:00:27.4]} 31. Qb6 {[%clk 0:00:29]} 31... Ra8 {[%clk 0:00:21.2]} 32.
Bc1 {[%clk 0:00:11]} 32... Ra1 {[%clk 0:00:18.5]} 33. Qe3 {[%clk 0:00:12]} 33...
Qg5 {[%clk 0:00:16.3]} 0-1

[Event "*** Titled Tuesday Blitz"]
[Site "Chess.com"]
[Date "2018.05.01"]
[Round "3"]
[White "Caterpiller35"]
[Black "chessking2151"]
[Result "1/2-1/2"]
[WhiteElo "2227"]
[BlackElo "2424"]
[TimeControl "180+2"]
[EndTime "13:39:27 PDT"]
[Termination "Game drawn by agreement"]

1. d4 {[%clk 0:02:51]} 1... Nf6 {[%clk 0:02:58.3]} 2. Bg5 {[%clk 0:02:51.6]}
2... d5 {[%clk 0:02:57]} 3. e3 {[%clk 0:02:52.1]} 3... e6 {[%clk 0:02:50.4]} 4.
Nd2 {[%clk 0:02:50.9]} 4... Be7 {[%clk 0:02:50.3]} 5. f4 {[%clk 0:02:51.5]} 5...
h6 {[%clk 0:02:49.7]} 6. Bxf6 {[%clk 0:02:49.7]} 6... gxf6 {[%clk 0:02:48.3]} 7.
Ngf3 {[%clk 0:02:50.2]} 7... c5 {[%clk 0:02:49]} 8. c3 {[%clk 0:02:49.6]} 8...
Nc6 {[%clk 0:02:48]} 9. g3 {[%clk 0:01:10.2]} 9... Qb6 {[%clk 0:02:46.5]} 10.
Qb3 {[%clk 0:01:10.2]} 10... Bd7 {[%clk 0:02:44.2]} 11. Qxb6 {[%clk 0:01:09.2]}
11... axb6 {[%clk 0:02:44.9]} 12. a3 {[%clk 0:01:09.8]} 12... c4 {[%clk
0:02:45.4]} 13. e4 {[%clk 0:01:10.4]} 13... b5 {[%clk 0:02:45.4]} 14. Rd1 {[%clk
0:01:04.2]} 14... dxe4 {[%clk 0:02:39.3]} 15. Nxe4 {[%clk 0:01:04.5]} 15... f5
{[%clk 0:02:40.9]} 16. Nc5 {[%clk 0:00:57.4]} 16... Bxc5 {[%clk 0:02:39.2]} 17.
dxc5 {[%clk 0:00:58.3]} 17... Ke7 {[%clk 0:02:40.8]} 18. Bg2 {[%clk 0:00:53.5]}
18... Rhd8 {[%clk 0:02:40.2]} 19. Kf2 {[%clk 0:00:54.2]} 19... f6 {[%clk
0:02:38.2]} 20. Rd6 {[%clk 0:00:53.5]} 20... Na5 {[%clk 0:02:31.2]} 21. Nd4
{[%clk 0:00:40.3]} 21... Ra6 {[%clk 0:02:30.9]} 22. Bxb7 {[%clk 0:00:30.5]}
22... Rxd6 {[%clk 0:02:12.8]} 23. cxd6+ {[%clk 0:00:30.9]} 23... Kxd6 {[%clk
0:02:14.7]} 24. Bf3 {[%clk 0:00:30.3]} 24... e5 {[%clk 0:02:13.7]} 25. fxe5+
{[%clk 0:00:30.1]} 25... fxe5 {[%clk 0:02:13.7]} 26. Nc2 {[%clk 0:00:31.1]}
26... Ke7 {[%clk 0:01:57.7]} 27. Rd1 {[%clk 0:00:31.3]} 27... Rc8 {[%clk
0:01:55.3]} 28. Nb4 {[%clk 0:00:31.7]} 28... Be6 {[%clk 0:01:53.1]} 29. Bd5
{[%clk 0:00:29.1]} 29... Rd8 {[%clk 0:01:47.4]} 30. Bf3 {[%clk 0:00:27.4]} 30...
Rc8 {[%clk 0:01:45.5]} 31. Bd5 {[%clk 0:00:27.5]} 31... Nb3 {[%clk 0:01:23.7]}
32. Bxe6 {[%clk 0:00:26.1]} 32... Kxe6 {[%clk 0:01:24.5]} 33. Ke3 {[%clk
0:00:24.2]} 33... Nc5 {[%clk 0:01:22.3]} 34. Rd5 {[%clk 0:00:23.3]} 34... Rc7
{[%clk 0:01:22]} 35. Rd8 {[%clk 0:00:23.9]} 35... Na4 {[%clk 0:01:09.4]} 36.
Re8+ {[%clk 0:00:17.2]} 36... Re7 {[%clk 0:01:07.6]} 37. Rh8 {[%clk 0:00:15.5]}
37... Nxb2 {[%clk 0:00:41.8]} 38. Rxh6+ {[%clk 0:00:15.9]} 38... Kd7 {[%clk
0:00:41]} 39. Rb6 {[%clk 0:00:16.5]} 1/2-1/2

[Event "*** Titled Tuesday Blitz"]
[Site "Chess.com"]
[Date "2018.05.01"]
[Round "3"]
[White "Flawless2018"]
[Black "SmoothAsAHedgehog"]
[Result "1-0"]
[WhiteElo "2473"]
[BlackElo "2529"]
[TimeControl "180+2"]
[EndTime "13:39:43 PDT"]
[Termination "Flawless2018 won by checkmate"]

1. d4 {[%clk 0:03:01.4]} 1... Nf6 {[%clk 0:02:55.1]} 2. c4 {[%clk 0:03:01.8]}
2... e6 {[%clk 0:02:55.9]} 3. Nf3 {[%clk 0:03:02.9]} 3... d5 {[%clk 0:02:57]} 4.
Nc3 {[%clk 0:03:03.3]} 4... Be7 {[%clk 0:02:57.9]} 5. Bf4 {[%clk 0:03:03.8]}
5... O-O {[%clk 0:02:58.8]} 6. e3 {[%clk 0:03:04.6]} 6... Nbd7 {[%clk
0:03:00.2]} 7. c5 {[%clk 0:03:05.2]} 7... c6 {[%clk 0:03:00.5]} 8. h3 {[%clk
0:02:58.4]} 8... b6 {[%clk 0:03:01.2]} 9. b4 {[%clk 0:02:59.1]} 9... a5 {[%clk
0:03:02.8]} 10. a3 {[%clk 0:03:00.1]} 10... Ba6 {[%clk 0:02:57.9]} 11. Bxa6
{[%clk 0:02:59.6]} 11... Rxa6 {[%clk 0:02:58.4]} 12. b5 {[%clk 0:03:00.4]} 12...
cxb5 {[%clk 0:02:54.1]} 13. c6 {[%clk 0:03:00.9]} 13... Qc8 {[%clk 0:02:52.9]}
14. c7 {[%clk 0:02:58.5]} 14... b4 {[%clk 0:02:44.7]} 15. Nb5 {[%clk 0:02:57.1]}
15... Ne4 {[%clk 0:02:36.9]} 16. a4 {[%clk 0:02:45.8]} 16... Nc3 {[%clk
0:01:47.8]} 17. Qd3 {[%clk 0:02:43.4]} 17... Ra8 {[%clk 0:01:40]} 18. O-O {[%clk
0:02:40.3]} 18... Nxb5 {[%clk 0:01:33.8]} 19. Qxb5 {[%clk 0:02:34.7]} 19... Nf6
{[%clk 0:01:23.1]} 20. Rfc1 {[%clk 0:01:43.5]} 20... Ne4 {[%clk 0:01:19.6]} 21.
Rc6 {[%clk 0:01:39.9]} 21... Nc3 {[%clk 0:00:19.9]} 22. Qxb6 {[%clk 0:01:39.2]}
22... Re8 {[%clk 0:00:15.1]} 23. Ne5 {[%clk 0:01:34.5]} 23... f6 {[%clk
0:00:11.9]} 24. Nd3 {[%clk 0:01:30.9]} 24... Kf7 {[%clk 0:00:12.7]} 25. Nc5
{[%clk 0:01:21.8]} 25... Bxc5 {[%clk 0:00:13.1]} 26. Qxc5 {[%clk 0:01:20.5]}
26... Qd7 {[%clk 0:00:09.1]} 27. Rd6 {[%clk 0:01:12.6]} 27... Qe7 {[%clk
0:00:09.9]} 28. Qc6 {[%clk 0:01:10.7]} 28... Kg6 {[%clk 0:00:06.7]} 29. Rd7
{[%clk 0:01:10.7]} 29... Qf8 {[%clk 0:00:08]} 30. g4 {[%clk 0:00:59.6]} 30...
Rac8 {[%clk 0:00:07.2]} 31. h4 {[%clk 0:00:59.9]} 31... h5 {[%clk 0:00:07.2]}
32. gxh5+ {[%clk 0:00:55.9]} 32... Kxh5 {[%clk 0:00:06.2]} 33. Kg2 {[%clk
0:00:46.4]} 33... Kg6 {[%clk 0:00:06.5]} 34. Rg1 {[%clk 0:00:42.9]} 34... Kh7
{[%clk 0:00:07]} 35. Kf1 {[%clk 0:00:39.6]} 35... Kh8 {[%clk 0:00:03.4]} 36.
Rgxg7 {[%clk 0:00:34.1]} 36... Qxg7 {[%clk 0:00:05.3]} 37. Rxg7 {[%clk
0:00:34.8]} 37... Kxg7 {[%clk 0:00:07.2]} 38. Qd7+ {[%clk 0:00:35.8]} 38... Kg6
{[%clk 0:00:08.1]} 39. h5+ {[%clk 0:00:36.1]} 39... Kxh5 {[%clk 0:00:06.6]} 40.
Qh7+ {[%clk 0:00:36.9]} 40... Kg4 {[%clk 0:00:07.3]} 41. Qg6+ {[%clk 0:00:37.4]}
41... Kh3 {[%clk 0:00:05.8]} 42. Qg3# {[%clk 0:00:37.8]} 1-0

[Event "*** Titled Tuesday Blitz"]
[Site "Chess.com"]
[Date "2018.05.01"]
[Round "3"]
[White "PowerThinking2650"]
[Black "GoingKronos"]
[Result "0-1"]
[WhiteElo "2288"]
[BlackElo "2377"]
[TimeControl "180+2"]
[EndTime "13:39:46 PDT"]
[Termination "GoingKronos won by resignation"]

1. e4 {[%clk 0:03:01.9]} 1... e6 {[%clk 0:02:59.8]} 2. d3 {[%clk 0:03:01.6]}
2... d5 {[%clk 0:03:00.7]} 3. Nd2 {[%clk 0:02:59]} 3... Nf6 {[%clk 0:03:01.8]}
4. Ngf3 {[%clk 0:02:59.6]} 4... c5 {[%clk 0:03:02.8]} 5. g3 {[%clk 0:02:59.8]}
5... g6 {[%clk 0:03:03.8]} 6. Bg2 {[%clk 0:02:59.9]} 6... Bg7 {[%clk 0:03:04.9]}
7. O-O {[%clk 0:02:59.4]} 7... O-O {[%clk 0:03:05.9]} 8. Re1 {[%clk 0:02:48.8]}
8... Nc6 {[%clk 0:03:05.3]} 9. c3 {[%clk 0:02:42.1]} 9... a5 {[%clk 0:03:06.2]}
10. e5 {[%clk 0:02:36.9]} 10... Ng4 {[%clk 0:03:07]} 11. d4 {[%clk 0:02:35.3]}
11... cxd4 {[%clk 0:03:08]} 12. cxd4 {[%clk 0:02:34.4]} 12... f6 {[%clk
0:03:09.1]} 13. h3 {[%clk 0:02:31.9]} 13... Nxf2 {[%clk 0:03:10]} 14. Kxf2
{[%clk 0:02:30.2]} 14... fxe5 {[%clk 0:03:11.1]} 15. Kg1 {[%clk 0:02:04.4]}
15... exd4 {[%clk 0:03:04.9]} 16. Nb3 {[%clk 0:01:51.2]} 16... e5 {[%clk
0:03:05.6]} 17. a4 {[%clk 0:01:38.4]} 17... Qd6 {[%clk 0:02:54.6]} 18. Kh2
{[%clk 0:01:34.1]} 18... Bf5 {[%clk 0:02:41.6]} 19. Nh4 {[%clk 0:01:23.9]} 19...
Be6 {[%clk 0:02:39.6]} 20. Bg5 {[%clk 0:01:19.2]} 20... e4 {[%clk 0:02:26.9]}
21. Rf1 {[%clk 0:00:45.1]} 21... Be5 {[%clk 0:02:17.6]} 22. Qe1 {[%clk
0:00:42.1]} 22... Rxf1 {[%clk 0:02:02.1]} 23. Bxf1 {[%clk 0:00:42.8]} 23... Rf8
{[%clk 0:02:02.8]} 24. Bh6 {[%clk 0:00:37.8]} 24... Rxf1 {[%clk 0:01:22.5]} 25.
Qxf1 {[%clk 0:00:36.9]} 25... Bxg3+ {[%clk 0:01:24]} 26. Kg2 {[%clk 0:00:38]}
26... Bxh4 {[%clk 0:01:25]} 27. Kh1 {[%clk 0:00:29.5]} 27... Be7 {[%clk
0:00:52.7]} 28. Qg2 {[%clk 0:00:30.2]} 28... d3 {[%clk 0:00:48.6]} 29. Rf1
{[%clk 0:00:29.6]} 29... Ne5 {[%clk 0:00:49.7]} 30. Nd4 {[%clk 0:00:28.7]} 30...
Bf7 {[%clk 0:00:45.7]} 31. Bf4 {[%clk 0:00:23.4]} 31... Bf6 {[%clk 0:00:36]} 32.
Qg3 {[%clk 0:00:21.2]} 32... Kg7 {[%clk 0:00:35.6]} 33. Nb5 {[%clk 0:00:21.5]}
33... Qe7 {[%clk 0:00:36.4]} 34. Be3 {[%clk 0:00:16]} 34... Nf3 {[%clk
0:00:35.4]} 35. Rxf3 {[%clk 0:00:12]} 35... exf3 {[%clk 0:00:35.6]} 36. Qxf3
{[%clk 0:00:13.2]} 36... Qe4 {[%clk 0:00:33.4]} 37. Nd4 {[%clk 0:00:12.3]} 37...
Qxf3+ {[%clk 0:00:31]} 38. Nxf3 {[%clk 0:00:13.2]} 38... Bxb2 {[%clk 0:00:32.3]}
39. Kg2 {[%clk 0:00:12.8]} 39... Be6 {[%clk 0:00:31.8]} 40. Bd4+ {[%clk
0:00:11]} 40... Bxd4 {[%clk 0:00:31.9]} 41. Nxd4 {[%clk 0:00:12.8]} 41... d2
{[%clk 0:00:28.4]} 0-1

[Event "*** Titled Tuesday Blitz"]
[Site "Chess.com"]
[Date "2018.05.01"]
[Round "3"]
[White "DanielNaroditsky"]
[Black "Khamrakulov_Djurabek"]
[Result "1/2-1/2"]
[WhiteElo "2810"]
[BlackElo "2646"]
[TimeControl "180+2"]
[EndTime "13:39:47 PDT"]
[Termination "Game drawn by agreement"]

1. Nf3 {[%clk 0:03:01.9]} 1... Nf6 {[%clk 0:02:59]} 2. c4 {[%clk 0:03:03.5]}
2... e6 {[%clk 0:02:58.9]} 3. g3 {[%clk 0:03:03.6]} 3... d5 {[%clk 0:02:58.7]}
4. Bg2 {[%clk 0:03:05.5]} 4... Be7 {[%clk 0:02:59.3]} 5. O-O {[%clk 0:03:06.8]}
5... O-O {[%clk 0:03:00.5]} 6. b3 {[%clk 0:03:07]} 6... b6 {[%clk 0:03:00.4]} 7.
Bb2 {[%clk 0:03:07.9]} 7... Bb7 {[%clk 0:03:01.6]} 8. d4 {[%clk 0:03:04.2]} 8...
c5 {[%clk 0:03:00]} 9. cxd5 {[%clk 0:03:00.1]} 9... Bxd5 {[%clk 0:02:57.4]} 10.
Nc3 {[%clk 0:02:53.5]} 10... Bb7 {[%clk 0:02:57.9]} 11. dxc5 {[%clk 0:02:54.9]}
11... Bxc5 {[%clk 0:02:56.4]} 12. Qc2 {[%clk 0:02:54]} 12... Nc6 {[%clk
0:02:55.1]} 13. Rad1 {[%clk 0:02:55.1]} 13... Qe7 {[%clk 0:02:55.7]} 14. a3
{[%clk 0:02:55.6]} 14... Rad8 {[%clk 0:02:48.8]} 15. b4 {[%clk 0:02:54.4]} 15...
Nd4 {[%clk 0:02:49.2]} 16. Nxd4 {[%clk 0:02:52.3]} 16... Bxd4 {[%clk 0:02:49.8]}
17. Bxb7 {[%clk 0:02:17.5]} 17... Qxb7 {[%clk 0:02:49.9]} 18. Nb5 {[%clk
0:02:06.9]} 18... Bxb2 {[%clk 0:02:48.9]} 19. Qxb2 {[%clk 0:02:08.8]} 19... Rd7
{[%clk 0:02:30.1]} 20. Rxd7 {[%clk 0:01:48.2]} 20... Qxd7 {[%clk 0:02:30.2]} 21.
Nc3 {[%clk 0:01:49.3]} 21... Rd8 {[%clk 0:02:27.3]} 22. Rd1 {[%clk 0:01:47.6]}
22... Qc8 {[%clk 0:02:25.1]} 23. Qc1 {[%clk 0:01:41.3]} 23... h6 {[%clk
0:02:16.2]} 24. Nb5 {[%clk 0:01:31.6]} 24... Qxc1 {[%clk 0:02:05.2]} 25. Rxc1
{[%clk 0:01:32.2]} 25... a6 {[%clk 0:02:05.9]} 26. Nc3 {[%clk 0:01:13.5]} 26...
Rc8 {[%clk 0:02:05.5]} 27. Na2 {[%clk 0:01:06.9]} 27... Rxc1+ {[%clk 0:02:05.5]}
28. Nxc1 {[%clk 0:01:08.8]} 28... Kf8 {[%clk 0:02:06.2]} 29. f3 {[%clk
0:01:09.4]} 29... Nd5 {[%clk 0:02:02.4]} 30. Kf2 {[%clk 0:01:00]} 30... Ke7
{[%clk 0:01:59.6]} 31. e4 {[%clk 0:00:54.4]} 31... Nc3 {[%clk 0:02:00.4]} 32.
Ke3 {[%clk 0:00:55.1]} 32... Kd6 {[%clk 0:01:35.6]} 33. Kd3 {[%clk 0:00:56.5]}
33... Nb5 {[%clk 0:01:36.1]} 34. a4 {[%clk 0:00:57.3]} 34... Nc7 {[%clk
0:01:37.1]} 35. Nb3 {[%clk 0:00:58.9]} 35... e5 {[%clk 0:01:36.1]} 36. Nd2
{[%clk 0:00:57.2]} 36... b5 {[%clk 0:01:30]} 37. a5 {[%clk 0:00:56.9]} 37... Ne6
{[%clk 0:01:28]} 38. Nb3 {[%clk 0:00:58.2]} 38... h5 {[%clk 0:01:24.8]} 39. Ke3
{[%clk 0:00:55.7]} 39... g5 {[%clk 0:01:25.2]} 40. Kd3 {[%clk 0:00:52.9]} 40...
f6 {[%clk 0:01:23.8]} 41. Ke3 {[%clk 0:00:54]} 41... Kc6 {[%clk 0:01:24.5]} 42.
Kd3 {[%clk 0:00:53.9]} 42... Kd6 {[%clk 0:01:25.6]} 43. Ke3 {[%clk 0:00:54.3]}
43... Kc6 {[%clk 0:01:26.8]} 44. Nc1 {[%clk 0:00:53.2]} 44... Nd4 {[%clk
0:01:23.7]} 45. Nd3 {[%clk 0:00:54.7]} 45... Kd6 {[%clk 0:01:24.8]} 46. f4
{[%clk 0:00:53.9]} 46... Ne6 {[%clk 0:01:18.2]} 47. fxe5+ {[%clk 0:00:48.5]}
47... fxe5 {[%clk 0:01:18.8]} 48. h4 {[%clk 0:00:44.1]} 48... g4 {[%clk
0:01:17.4]} 49. Kd2 {[%clk 0:00:42.6]} 49... Nc7 {[%clk 0:01:14]} 50. Nc5 {[%clk
0:00:42.2]} 50... Ke7 {[%clk 0:01:14.7]} 51. Ke3 {[%clk 0:00:40.3]} 51... Kd6
{[%clk 0:01:14.2]} 52. Nb7+ {[%clk 0:00:39.8]} 52... Kd7 {[%clk 0:01:08.9]} 53.
Nc5+ {[%clk 0:00:39.9]} 53... Kd6 {[%clk 0:01:08.1]} 54. Kd3 {[%clk 0:00:40.6]}
54... Kc6 {[%clk 0:01:07.9]} 55. Kc3 {[%clk 0:00:41]} 55... Kd6 {[%clk 0:01:09]}
56. Kd2 {[%clk 0:00:38.1]} 56... Kc6 {[%clk 0:01:09.7]} 57. Ke2 {[%clk 0:00:38]}
57... Kd6 {[%clk 0:01:10.8]} 58. Ke3 {[%clk 0:00:34.8]} 58... Kc6 {[%clk
0:01:11.8]} 59. Kd3 {[%clk 0:00:26.7]} 1/2-1/2